Workbook

Sheet NOTES
A1: CSIR RFP No. 3537/13/09/2022
A3: PLEASE NOTE:
A4: This spreadsheet contains 6 worksheets inclusive of this one as follows:
A5: Worksheet | B5: Content
A6: 1 | B6: Notes
A7: 2 | B7: Menu Pricing
A8: 3 | B8: Statement of Comprehensive Income
A9: 4 | B9: Statement of Financial Position
A10: 5 | B10: Sustainability Indicator
A11: 6 | B11: Supplier List
A13: General Specification for mandatory documents :
A14: 1 | B14: Please check your submission for compliance against the Checklist of Mandatory Documents requirement and ensure that all the required documents are included.
A16: General Specification for Food/ menu pricing :
A17: 1 | B17: Please work on the pricing as per the grammages provided
A18: 2 | B18: Variations from this are provided in Product Specification
A19: 3 | B19: This is not the definitive menu - ie we are asking for pricing for tender purposes however this will form an anchor role in the SLA
A20: 4 | B20: Menu's and firm pricing will be further discussed at the SLA period
A22: General Specification for Financial statements :
A23: 1 | B23: You can make use of the tempates contained herein, i.e. Statement of Comprehensive Income, Statement of Financial Position a or submit your own in line with these guidelines as your company's financial sustainability over the period of the tender will be evaluated.
A24: 2 | B24: All the shaded cells contain formulas for your convenience.
A25: 3 | B25: Examples are provided for Statement of Comprehensive Income, Statement of Financial position and Sustainability Indicator.
A27: General Specification for Supplier List :
A28: 1 | B28: Please complete the supplier list.

Sheet Menu Pricing
A1: Tender: | C1: Note: delete this note and indicate the name of the company and services you are tendering for in this space)
A2: Menu Pricing
A3: Company Name:
A4: ITEM | B4: QTY | C4: DESCRIPTION | D4: NAME OF DISH | E4: PRODUCT SPECIFICATION | F4: UNIT RATE | G4: TOTAL
C6: Meal of the Day
A7: 1 | B7: 1 | C7: Traditional/Ethnic meal | E7: Protein minimum raw weight (bone out) 180 gm ( bone in) 210 - 240gm's, starch 120g and Veg/salad 80 g | F7: R0.00 | G7: =SUM(F7*B7) -> R0.00
A8: 2 | B8: 1 | C8: Western ' Meal | F8: R0.00 | G8: =SUM(F8*B8) -> R0.00
A9: 3 | B9: 1 | C9: Vegetarian Meal | F9: R0.00 | G9: R0.00
A10: 4 | B10: 1 | C10: Chefs Specials | D10: 1 | E10: Indicate typical average cost using above specs | F10: R0.00 | G10: R0.00
B11: 1 | C11: Chefs Specials | D11: 2 | E11: Indicate typical average cost using above specs | F11: R0.00 | G11: R0.00
B12: 1 | C12: Chefs Specials | D12: 3 | E12: Indicate typical average cost using above specs | F12: R0.00 | G12: R0.00
A13: 5 | B13: 1 | C13: Kosher/Halaal/Other | E13: Name of supplier (type in line below) and typical average cost | F13: R0.00 | G13: R0.00
A14: 6 | B14: 1 | C14: Breakfast | D14: English | E14: 2 slice brown toast, 2 slices back bacon, 1 slice fried tomato, 2 fried eggs (lg), 1 x pork sasuage (not chipolatta) | F14: R0.00 | G14: R0.00
A15: 7 | B15: 1 | C15: Omelette | D15: 3 Egg | E15: 3 eggs , Ham (15mg) , diced tomato and onion | F15: R0.00 | G15: R0.00
C16: Call Order/Grab and Go
A17: 8 | B17: 1 | C17: Toasted Ham Cheese and Tomato | E17: 2 slices bread , 30 gm's cheese, 2 slice tomato, 1 slice sandwich ham | F17: R0.00 | G17: =SUM(F17*B17) -> R0.00
A18: 9 | B18: 1 | C18: Bacon and Egg | E18: 2 slices rye bread, 1 large egg 2 slices back bacon | F18: R0.00 | G18: R0.00
A19: 10 | B19: 1 | C19: Chicken mayonnaise | E19: 2 slices health bread, lettuce, 30 gm's Chicken Mayo, 2 slices tomato | F19: R0.00 | G19: R0.00
A20: 11 | B20: 1 | C20: Roast Beef and Mustard Trammezzini | E20: 1 x Trammezzini, 2 slices Beef, 2 slice tomato | F20: R0.00 | G20: R0.00
A21: 12 | B21: 1 | C21: Cheese Tomato and Cucumber on Rye | E21: 2 x Slice Rye, 30 gm's Cheese, 2 Slice tomato, 4 Slice Cucumber | F21: R0.00 | G21: R0.00
A22: 13 | B22: 1 | C22: Cheese Burger and Chips | E22: 1 Bun, 150gm Patty, Condiment, Gherkins slice x 2 , 1 x Tomato slice Cheese slice x 1, chups x 100gm's | F22: R0.00 | G22: R0.00
A23: 14 | B23: 1 | C23: Russian Roll | E23: 70 gm russian , 1 x Hot dog roll | F23: R0.00 | G23: R0.00
A24: 15 | B24: 1 | C24: Potato (slap) chips | E24: 200 gm portion | F24: R0.00 | G24: R0.00
A25: 16 | B25: 1 | C25: Pies - name supplier and minimum filling grammage | E25: Name supplier and minimum filling grammage | F25: R0.00 | G25: =SUM(F25*B25) -> R0.00
C27: Resale/Confectionary
A28: 17 | B28: 1 | C28: Bar One 100gm | F28: R0.00 | G28: R0.00
A29: 18 | B29: 1 | C29: Simba Chips 36 gm's | F29: R0.00 | G29: R0.00
A30: 19 | B30: 1 | C30: Tumbles 65gms | F30: R0.00 | G30: R0.00
A31: 20 | B31: 1 | C31: Popcorn 65 gm's | F31: R0.00 | G31: R0.00
A32: 21 | B32: 1 | C32: Biltong 50gms | F32: R0.00 | G32: R0.00
A33: 22 | B33: 1 | C33: Fizzpop | F33: R0.00 | G33: R0.00
A34: 23 | B34: 1 | C34: Maynards 75gms | F34: R0.00 | G34: R0.00
A35: 24 | B35: 1 | C35: Cadburys Slab 80gms | F35: R0.00 | G35: R0.00
C37: Bakery/Pastries | D37: Name of product | E37: Individual pricing
A38: 25 | B38: 1 | C38: Croissant | E38: 1 x Crossisant 1 x butter portion, 1 x jam portion | F38: R0.00 | G38: =(F38*B38) -> R0.00
A39: 26 | B39: 1 | C39: Muffin - std size | F39: R0.00 | G39: =(F39*B39) -> R0.00
A40: 27 | B40: 1 | C40: Danish - apple - std size | F40: R0.00 | G40: R0.00
A41: 28 | B41: 1 | C41: Slice of cake - Black Forest | E41: Normal cake sliced into 12 | F41: R0.00 | G41: R0.00
C43: Cold Beverages | D43: Per Unit | E43: As per ml spec
A44: 29 | B44: 1 | C44: Buddy - Carbonated soft drink 500ml | E44: Coca Cola Product | F44: R0.00 | G44: =(F44*B44) -> R0.00
A45: 30 | B45: 1 | C45: Can - Carbonated soft drink 330ml | E45: Coca Cola Product | F45: R0.00 | G45: =(F45*B45) -> R0.00
A46: 31 | B46: 1 | C46: Bottled Water - 500ml | E46: Valpre | F46: R0.00 | G46: R0.00
A47: 32 | B47: 1 | C47: Bottled Juice - 350ml | E47: Sir Juice | F47: R0.00 | G47: R0.00
A48: 33 | B48: 1 | C48: Powerade - 500ml | F48: R0.00 | G48: R0.00
C50: Platters - Functions | E50: Price of platter to serve 10 pax - cost for 1.5 items per person
A51: 34 | B51: 1 | C51: Sweet - desserts | E51: Indicate 5 items | F51: R0.00 | G51: =(F51*B51) -> R0.00
A52: 35 | B52: 1 | C52: Sandwich Platter | E52: Indicate 5 items | F52: R0.00 | G52: =(F52*B52) -> R0.00
A53: 36 | B53: 1 | C53: Cold Meat Platter | E53: Indicate 5 items | F53: R0.00 | G53: R0.00
A54: 37 | B54: 1 | C54: Cheese Platter | E54: Indicate 5 items | F54: R0.00 | G54: R0.00
A55: 38 | B55: 1 | C55: Fruit Platter | E55: Indicate 5 items | F55: R0.00 | G55: R0.00
E58: SUB-TOTAL (Excluding VAT) | G58: =SUM(G7:G56) -> R0.00
E60: GRAND TOTAL (Excluding VAT) | G60: =SUM(G58:G58) -> R0.00

Sheet Statement - Comprehensive Incom
B1: Tender: | D1: Note: delete this note and indicate the name of the company and services you are tendering for in this space)
B2: Statement of Financial Position (previously called Income Statement)
B3: Company Name | D3: (NOTE: Delete this note and Indicate your company name in this space)
D4: EXAMPLE | E4: Projected Year 1 | F4: Projected Year 2 | G4: Projected Year 3
B6: Sales | D6: R 345,000.00
B7: Less: Cost of Sales | D7: =SUM(D8:D9) -> R 301,875.00 | E7: =SUM(E8:E9) -> R 0.00 | F7: =SUM(F8:F9) -> R 0.00 | G7: =SUM(G8:G9) -> R 0.00
C8: Opening Stock | D8: R 43,125.00
C9: Purchases | D9: R 258,750.00
C10: Closing Stock | D10: R 25,875.00
B11: Gross Profit | D11: =D6-D8-D9+D10 -> R 69,000.00 | E11: =E6-E8-E9+E10 -> R 0.00 | F11: =F6-F8-F9+F10 -> R 0.00 | G11: =G6-G8-G9+G10 -> R 0.00
B12: Less: Expenses
C13: Salaries & Wages | D13: R 23,230.00
C14: Insurance | D14: R 3,450.00
C15: Stationery and sundries | D15: R 1,840.00
C16: Repairs and maintenance | D16: R 460.00
C17: Fees- audit | D17: R 1,150.00
C18: Bank Interest | D18: R 1,150.00
C19: Administrative expenses | D19: R 3,000.00
C20: Service Fee | D20: R 15,000.00
C21: e.g Equipment hire | D21: R 300.00
C22: e.g Miscellaneous | D22: R 275.00
B29: EBITDA | D29: =D11-SUM(D12:D28) -> R 19,145.00 | E29: =E11-SUM(E12:E28) -> R 0.00 | F29: =F11-SUM(F12:F28) -> R 0.00 | G29: =G11-SUM(G12:G28) -> R 0.00
B30: Depreciation | D30: R 7,500.00
B31: EBIT | D31: =D29-D30 -> R 11,645.00 | E31: =E29-E30 -> R 0.00 | F31: =F29-F30 -> R 0.00 | G31: =G29-G30 -> R 0.00
B32: Net Interest Paid/ (Received) | D32: R 1,500.00
B33: Profit BEFORE Tax (PBT) | D33: =D31-D32 -> R 10,145.00 | E33: =E31-E32 -> R 0.00 | F33: R 0.00 | G33: R 0.00
B34: Income/(outflow) from Associates | D34: R 5,000.00
B35: Tax | D35: R 3,800.00
B36: Profit AFTER Tax | D36: =D33+D34-D35 -> R 11,345.00 | E36: =E33+E34-E35 -> R 0.00 | F36: R 0.00 | G36: R 0.00
B37: Minority Interest | D37: R 5,000.00
B38: Dividends | D38: R 1,725.00
B39: Retained Earnings/ (Loss) | D39: =D36-D37-D38 -> R 4,620.00 | E39: =E36-E37-E38 -> R 0.00 | F39: R 0.00 | G39: R 0.00
C41: Note: Figures for items in brackets to have a minus sign in front (e.g -3000)

Sheet Statement - Financial Position
B1: Tender: | C1: (Note: delete this note and indicate the name of the company and services you are tendering for in this space)
B2: Statement of Financial Position (previously called Balance Sheet)
B3: Company Name: | D3: (NOTE: Delete this note and Indicate your company name in this space)
D4: EXAMPLE | E4: Projected Year 1 | F4: Projected Year 2 | G4: Projected Year 3
B6: Total Fixed Assets
B7: Fixed Assets at costs | D7: R 50,000.00
B8: Machinery and Equipments | D8: R 15,325.00 | E8: R 0.00
B9: Vehicles | D9: R 95,000.00 | E9: R 0.00
B10: Other non-current assets
B14: Less Accumulated Depreciation | D14: R 7,500.00
D15: =SUM(D7:D13)-D14 -> R 152,825.00 | E15: =SUM(E7:E13)-E14 -> R 0.00 | F15: R 0.00 | G15: R 0.00
B16: Current Assets
B17: Trade Receivables | D17: R 28,750.00 | E17: R 0.00
B18: Inventory | D18: R 25,875.00 | E18: R 0.00
B19: Cash and Cash Equivalents | D19: R 4,600.00 | E19: R 0.00
B20: Other Receivables | D20: R 2,300.00 | E20: R 0.00
D24: =SUM(D17:D23) -> R 61,525.00 | E24: =SUM(E17:E23) -> R 0.00 | F24: =SUM(F17:F23) -> R 0.00 | G24: =SUM(G17:G23) -> R 0.00
B25: TOTAL ASSETS | D25: =D15+D24 -> R 214,350.00 | E25: =E15+E24 -> R 0.00 | F25: =F15+F24 -> R 0.00 | G25: =G15+G24 -> R 0.00
B26: Equity
B27: Share Capital/Members Contributions
B28: Shareholders Loans | D28: R 17,250.00 | E28: R 0.00
B29: Reserves | D29: R 20,000.00 | E29: R 0.00
B30: Retained Earnings | D30: R 64,400.00 | E30: R 0.00
D31: =SUM(D27:D30) -> R 101,650.00 | E31: =SUM(E27:E30) -> R 0.00 | F31: =SUM(F27:F30) -> R 0.00 | G31: =SUM(G27:G30) -> R 0.00
B32: Liabilities
B33: Non-Current Liabilities
B34: Total Third Party Interest Bearing Debt | D34: R 63,250.00 | E34: R 0.00
B35: Deferred Tax
D36: =D34+D35 -> R 63,250.00 | E36: =E34+E35 -> R 0.00 | F36: =F34+F35 -> R 0.00 | G36: =G34+G35 -> R 0.00
B37: Current Liabilities
B38: Trade Payables | D38: R 29,900.00
B39: Current Tax | E39: R 0.00
B40: Other Payables | C40: e.g. Accruals | D40: R 10,925.00
C41: e.g Bank Overdraft | D41: R 8,625.00 | E41: R 0.00
D44: =SUM(D38:D43) -> R 49,450.00 | E44: =SUM(E38:E43) -> R 0.00 | F44: =SUM(F38:F43) -> R 0.00 | G44: =SUM(G38:G43) -> R 0.00
D45: =SUM(D36,D44) -> R 112,700.00 | E45: =SUM(E36,E44) -> R 0.00 | F45: R 0.00 | G45: =SUM(G36,G44) -> R 0.00
B46: TOTAL EQUITY AND LIABILITIES | D46: =SUM(D45,D31) -> R 214,350.00 | E46: =SUM(E45,E31) -> R 0.00 | F46: R 0.00 | G46: R 0.00

Sheet Sustainability Indicator
A1: Tender:
A2: Sustainability Indicators
A3: Company Name:
A4: Ratios | B4: EXAMPLE | C4: Projected Year 1 | D4: Projected Year 2 | E4: Projected Year 3
A5: Liquidity
A6: Current Ratio | B6: ='Statement - Financial Position'!D24/'Statement - Financial Position'!D44 -> 1.24 | C6: ='Statement - Financial Position'!E24/'Statement - Financial Position'!E44 ->  | D6: ='Statement - Financial Position'!F24/'Statement - Financial Position'!F44 ->  | E6: ='Statement - Financial Position'!G24/'Statement - Financial Position'!G44 -> 
A7: Profitability
A8: Gross Profit Margin | B8: =('Statement - Comprehensive Incom'!D6-'Statement - Comprehensive Incom'!D7)/'Statement - Comprehensive Incom'!D6 -> 12.50% | C8: =('Statement - Comprehensive Incom'!E6-'Statement - Comprehensive Incom'!E7)/'Statement - Comprehensive Incom'!E6 ->  | D8: =('Statement - Comprehensive Incom'!F6-'Statement - Comprehensive Incom'!F7)/'Statement - Comprehensive Incom'!F6 ->  | E8: =('Statement - Comprehensive Incom'!G6-'Statement - Comprehensive Incom'!G7)/'Statement - Comprehensive Incom'!G6 -> 
A9: Net Profit Margin | B9: ='Statement - Comprehensive Incom'!D36/'Statement - Comprehensive Incom'!D6*100% -> 3.29% | C9: ='Statement - Comprehensive Incom'!E36/'Statement - Comprehensive Incom'!E6 ->  | D9: ='Statement - Comprehensive Incom'!F36/'Statement - Comprehensive Incom'!F6 ->  | E9: ='Statement - Comprehensive Incom'!G36/'Statement - Comprehensive Incom'!G6 -> 
A11: Notes:
A12: Current ratio is an indication of a company's ability to meet short-term debt obligations.
A13: Gross Profit Margin indicates how much profit is earned on your products without consideration of indirect costs, selling and administration costs.
A14: Net Profit Margin shows how much profit comes from every dollar of sales.

Sheet Supplier List
A1: Tender | C1: (Note: delete this note and indicate the name of the company and services you are tendering for in this space)
A2: Supplier List
A3: Company Name: | C3: (NOTE: Delete this note and Indicate your company name in this space)
A4: No. | B4: Name of Supplier | C4: % of total inputs | D4: Description of products they supply | E4: Supplier agreement in place
A5: 1
A7: 2
A9: 3
A11: 4
A13: 5
A15: 6
A17: 7
A19: 8
A21: 9
A23: 10
A25: 11
A27: 12
A29: 13
A31: 14
A33: 15
A35: 16
A37: 17
A39: 18
A41: 19
A43: 20
A45: 21
A47: 22
A49: 23
A51: 24
